Department Family,Entity,Date,Expense Type,Expense Area,Supplier,Transaction Number,Amount,Description
Ministry of justice,CAFCASS,12/06/2023,Rent,HQ,AY UK LTD re London & Continental Railwa,1127967,"35,241.90",Croydon Rent
Ministry of justice,CAFCASS,12/06/2023,Service Charge,HQ,AY UK LTD re London & Continental Railwa,1127967,"13,636.78",Croydon Serv Chg
Ministry of justice,CAFCASS,27/06/2023,Rent,HQ,AY UK LTD re London & Continental Railwa,1128689,"74,820.84",Manchester 7F Rent
Ministry of justice,CAFCASS,27/06/2023,Service Charge,HQ,AY UK LTD re London & Continental Railwa,1128689,"24,346.60",Manchester 7F Serv Chg
Ministry of justice,CAFCASS,16/06/2023,System licence fees,HQ,Bytes Software Services Ltd,1128242,"39,602.53",Microsoft Azure and Serv Chrgs
Ministry of justice,CAFCASS,08/06/2023,Rates,HQ,Cabinet Office t/a Government Property A,1127856,"6,440.56",Norwich Rates
Ministry of justice,CAFCASS,08/06/2023,Rent,HQ,Cabinet Office t/a Government Property A,1127856,"18,785.39",Norwich Rent
Ministry of justice,CAFCASS,08/06/2023,Service Charge,HQ,Cabinet Office t/a Government Property A,1127856,"51,084.72",Norwich Serv Chg
Ministry of justice,CAFCASS,20/06/2023,Partnership Commissioned CS,HQ,Child Action Northwest,1128437,"31,080.00",Improving Child and Family Arrangements  CANW North
Ministry of justice,CAFCASS,20/06/2023,Partnership Commissioned CS,HQ,Child Action Northwest,1128440,"44,800.00",Improving Child and Family Arrangements  CANW West
Ministry of justice,CAFCASS,09/06/2023,Agency Practitioners,HQ,Community Resourcing Ltd t/a Retinue Sol,1127951,-395.01,Agency Staff
Ministry of justice,CAFCASS,09/06/2023,Agency Practitioners,Op Service Areas,Community Resourcing Ltd t/a Retinue Sol,1127951,"50,487.17",Agency Staff
Ministry of justice,CAFCASS,09/06/2023,Temp Business Support Staff,HQ,Community Resourcing Ltd t/a Retinue Sol,1127951,"9,754.95",Temp Business Support Staff
Ministry of justice,CAFCASS,09/06/2023,Temp Business Support Staff,Op Service Areas,Community Resourcing Ltd t/a Retinue Sol,1127951,"6,747.99",Temp Business Support Staff
Ministry of justice,CAFCASS,13/06/2023,Agency Practitioners,Op Service Areas,Community Resourcing Ltd t/a Retinue Sol,1128105,"41,297.02",Agency Staff
Ministry of justice,CAFCASS,13/06/2023,Temp Business Support Staff,HQ,Community Resourcing Ltd t/a Retinue Sol,1128105,"8,247.56",Temp Business Support Staff
Ministry of justice,CAFCASS,13/06/2023,Temp Business Support Staff,Op Service Areas,Community Resourcing Ltd t/a Retinue Sol,1128105,"3,231.65",Temp Business Support Staff
Ministry of justice,CAFCASS,21/06/2023,Agency Practitioners,HQ,Community Resourcing Ltd t/a Retinue Sol,1128432,"5,293.14",Agency Staff
Ministry of justice,CAFCASS,21/06/2023,Agency Practitioners,Op Service Areas,Community Resourcing Ltd t/a Retinue Sol,1128432,"50,907.38",Agency Staff
Ministry of justice,CAFCASS,21/06/2023,Temp Business Support Staff,HQ,Community Resourcing Ltd t/a Retinue Sol,1128432,"7,016.60",Temp Business Support Staff
Ministry of justice,CAFCASS,21/06/2023,Temp Business Support Staff,Op Service Areas,Community Resourcing Ltd t/a Retinue Sol,1128432,"3,213.00",Temp Business Support Staff
Ministry of justice,CAFCASS,21/06/2023,Agency Practitioners,Op Service Areas,Community Resourcing Ltd t/a Retinue Sol,1128497,"68,399.96",Agency Staff
Ministry of justice,CAFCASS,21/06/2023,Agency Practitioners,HQ,Community Resourcing Ltd t/a Retinue Sol,1128497,"1,948.72",Agency Staff
Ministry of justice,CAFCASS,21/06/2023,Temp Business Support Staff,HQ,Community Resourcing Ltd t/a Retinue Sol,1128497,"5,452.76",Temp Business Support Staff
Ministry of justice,CAFCASS,28/06/2023,Agency Practitioners,Op Service Areas,Community Resourcing Ltd t/a Retinue Sol,1128714,"53,295.62",Agency Staff
Ministry of justice,CAFCASS,28/06/2023,Agency Practitioners,HQ,Community Resourcing Ltd t/a Retinue Sol,1128714,"1,948.72",Agency Staff
Ministry of justice,CAFCASS,28/06/2023,Associate FCA (formerly SEC),Op Service Areas,Community Resourcing Ltd t/a Retinue Sol,1128714,59.40,Expenses
Ministry of justice,CAFCASS,28/06/2023,Temp Business Support Staff,HQ,Community Resourcing Ltd t/a Retinue Sol,1128714,"10,090.24",Temp Business Support Staff
Ministry of justice,CAFCASS,07/06/2023,T&S - UK (Non-Taxable),Op Service Areas,Corporate Travel Mngmnt North t/a CTM,1127792,"13,654.35",Corporate Travel Management
Ministry of justice,CAFCASS,07/06/2023,T&S - UK (Non-Taxable),HQ,Corporate Travel Mngmnt North t/a CTM,1127792,"9,372.25",Corporate Travel Management
Ministry of justice,CAFCASS,07/06/2023,T&S - UK (Non-Taxable) hotel,HQ,Corporate Travel Mngmnt North t/a CTM,1127792,"3,604.74",Corporate Travel Management  hotel
Ministry of justice,CAFCASS,07/06/2023,T&S - UK (Non-Taxable) hotel,Op Service Areas,Corporate Travel Mngmnt North t/a CTM,1127792,"3,962.04",Corporate Travel Management  hotel
Ministry of justice,CAFCASS,23/06/2023,Electricity,HQ,EDF Energy Ltd,1128542,"26,021.83",Various offices
Ministry of justice,CAFCASS,12/06/2023,Rent,HQ,HIHL-Orega Holborn Gate t/a Orega,1127960,"29,239.20",London temp Rent
Ministry of justice,CAFCASS,12/06/2023,Service Charge,HQ,HIHL-Orega Holborn Gate t/a Orega,1127960,"3,189.60",London temp Serv Chg
Ministry of justice,CAFCASS,19/06/2023,Telecom Equipment < 2.5k,HQ,Jigsaw24,1128364,"38,430.00",Telephony Services
Ministry of justice,CAFCASS,26/06/2023,Telecom Equipment < 2.5k,HQ,Jigsaw24,1128553,"38,430.00",Telephony Services
Ministry of justice,CAFCASS,23/06/2023,Training - course fees,HQ,L30 Relational Systems Ltd,1128541,"38,040.00",Leadership Training
Ministry of justice,CAFCASS,21/06/2023,Little Fish contracted costs,HQ,Little Fish (UK) Limited,1128461,"87,592.86",Technology services
Ministry of justice,CAFCASS,21/06/2023,Little Fish contracted costs,HQ,Little Fish (UK) Limited,1128463,"106,616.51",Technology services
Ministry of justice,CAFCASS,16/06/2023,Other IT contracted costs,HQ,Specialist Computer Centres Plc,1128288,"40,470.68",Laptops & Sleeves
Ministry of justice,CAFCASS,16/06/2023,Other IT contracted costs,HQ,Specialist Computer Centres Plc,1128299,"40,470.68",Laptops & Sleeves
Ministry of justice,CAFCASS,15/06/2023,Partnership Commissioned CS,HQ,Swan Family Centres Limited,1128170,"42,500.00",Improving Child and Family Arrangements  Swan Family SE
Ministry of justice,CAFCASS,20/06/2023,Building Fit Out & Enhancement,HQ,The Barnes Group Ltd T/a Bower Fuller,1128449,"278,746.97",London fit out
Ministry of justice,CAFCASS,07/06/2023,Rent,HQ,University of Warwick Science Park,1127797,"36,263.80",National Business Centre Rent
Ministry of justice,CAFCASS,07/06/2023,Service Charge,HQ,University of Warwick Science Park,1127797,"3,950.17",National Business Centre Serv Chg
Ministry of justice,CAFCASS,16/06/2023,Version 1,HQ,Version 1 Solutions Limited,1128285,"157,200.00",Technology services
